fUST/lending_fUST_20250925
["ID","MTS","AMOUNT","RATE_DAILY","PERIOD"]
[387526799,1758754269880,-523.78,0.00022465,2]
[387526801,1758754269889,-532.0,0.00022465,2]
[387526802,1758754269899,-480.0,0.00022465,2]
[387526804,1758754269908,-480.0,0.00022465,2]
[387526805,1758754269917,-480.0,0.00022465,2]
[387526807,1758754269927,-480.0,0.00022465,2]
[387526809,1758754269936,-728.49,0.00022465,2]
[387526810,1758754269945,-229.11914711,0.00022465,2]
[387526812,1758754269957,-250.88085289,0.00022465,2]
[387526814,1758754269967,-480.0,0.00022465,2]
[387526815,1758754269977,-1009.63,0.00022465,2]
[387526817,1758754269987,-399.07458199,0.00022465,2]
[387526864,1758754270693,-151.0,0.00019178,2]
[387526866,1758754270703,-568.76601,0.00019178,2]
[387526867,1758754270713,-151.0,0.00019178,2]
[387526869,1758754270723,-568.76601,0.00019178,2]
[387526871,1758754270733,-236.46798001,0.00019178,2]
[387526909,1758754271282,150.0,0.00022566,30]
[387528596,1758754497174,5000.0,0.00029418,63]
[387528598,1758754505362,5000.0,0.00029418,64]
[387528602,1758754813353,175.9886481,0.00018319,2]
[387528603,1758754815198,302.75770629,0.000189,2]
[387528608,1758755007948,393.785333,0.00018382,2]
[387528618,1758755178378,192.069386,0.00018319,2]
[387528648,1758755431930,-500.0,0.00019177,2]
[387528650,1758755431941,-500.0,0.00019177,2]
[387528652,1758755431950,-1200.0,0.00019177,2]
[387528654,1758755431960,-300.0,0.00019177,2]
[387528656,1758755431969,-483.09498378,0.00019178,2]
[387528658,1758755431978,-480.0,0.00019178,2]
[387528660,1758755431988,-439.94974506,0.00019178,2]
[387528662,1758755431997,-481.40040292,0.00019178,2]
[387528664,1758755432006,-339.77994086,0.00019178,2]
[387528666,1758755432016,-480.0,0.00019178,2]
[387528668,1758755432025,-480.0,0.00019178,2]
[387528670,1758755432034,-628.0,0.00019178,2]
[387528672,1758755432043,-480.0,0.00019178,2]
[387528674,1758755432052,-480.0,0.00019178,2]
[387528676,1758755432063,-480.0,0.00019178,2]
[387528678,1758755432074,-480.0,0.00019178,2]
[387528680,1758755432083,-483.4784309,0.00019178,2]
[387528682,1758755432092,-482.75,0.00019178,2]
[387528684,1758755432102,-480.0,0.00019178,2]
[387528686,1758755432112,-424.90153561,0.00019178,2]
[387528688,1758755432122,-480.0,0.00019178,2]
[387528690,1758755432131,-480.0,0.00019178,2]
[387528692,1758755432142,-480.0,0.00019178,2]
[387528694,1758755432152,-480.0,0.00019178,2]
[387528696,1758755432162,-480.0,0.00019178,2]
[387528698,1758755432171,-480.0,0.00019178,2]
[387528700,1758755432180,-480.0,0.00019178,2]
[387528702,1758755432189,-480.0,0.00019178,2]
[387528704,1758755432199,-480.0,0.00019178,2]
[387528706,1758755432208,-542.95231655,0.00019178,2]
[387528708,1758755432217,-480.0,0.00019178,2]
[387528710,1758755432226,-480.0,0.00019178,2]
[387528712,1758755432235,-320.35522617,0.00019178,2]
[387529725,1758755443151,-159.64477383,0.00019178,2]
[387529727,1758755443162,-320.85520617,0.00019178,2]
[387530022,1758755856228,2111.04957545,0.0001836,2]
[387530023,1758756117069,535.0,0.00029388,60]
[387530024,1758756238143,393.785333,0.00018313,2]
[387530025,1758756278936,8013.6,0.00029388,60]
[387530034,1758756516206,304.70727723,0.0001907,2]
[387530035,1758756519380,833.88713457,0.00019078,2]
[387530087,1758756632244,-300.0,0.00019177,2]
[387530089,1758756632254,-1755.73670122,0.00019178,2]
[387530091,1758756632264,-221.26117875,0.00019178,2]
[387530093,1758756632274,-484.43000604,0.00019178,2]
[387530095,1758756632284,-335.36638721,0.00019178,2]
[387530097,1758756632293,-629.41936986,0.00019178,2]
[387530099,1758756632302,-463.92263343,0.00019178,2]
[387530101,1758756632312,-482.6364415,0.00019178,2]
[387530103,1758756632321,-455.5943885,0.00019178,2]
[387530105,1758756632331,-480.0,0.00019178,2]
[387530107,1758756632340,-480.0,0.00019178,2]
[387530109,1758756632349,-502.64,0.00019178,2]
[387530111,1758756632359,-242.01541801,0.00019178,2]
[387530113,1758756632368,-480.0,0.00019178,2]
[387530115,1758756632377,-480.0,0.00019178,2]
[387530118,1758756632387,-480.0,0.00019178,2]
[387530120,1758756632397,-481.18701857,0.00019178,2]
[387530122,1758756632406,-1003.73945882,0.00019178,2]
[387530124,1758756632415,-480.90597836,0.00019178,2]
[387530126,1758756632425,-481.70908826,0.00019178,2]
[387530128,1758756632434,-480.0,0.00019178,2]
[387530130,1758756632443,-480.0,0.00019178,2]
[387530132,1758756632452,-480.0,0.00019178,2]
[387530134,1758756632462,-480.0,0.00019178,2]
[387530136,1758756632471,-480.0,0.00019178,2]
[387530138,1758756632480,-480.0,0.00019178,2]
[387530140,1758756632489,-480.0,0.00019178,2]
[387530142,1758756632498,-480.0,0.00019178,2]
[387530144,1758756632507,-480.0,0.00019178,2]
[387530146,1758756632516,-480.0,0.00019178,2]
[387530148,1758756632525,-480.0,0.00019178,2]
[387530150,1758756632536,-328.0,0.00019178,2]
[387530152,1758756632545,-166.0,0.00019178,2]
[387530154,1758756632555,-328.0,0.00019178,2]
[387530156,1758756632564,-166.0,0.00019178,2]
[387530158,1758756632573,-166.0,0.00019178,2]
[387530160,1758756632583,-328.0,0.00019178,2]
[387530162,1758756632593,-172.0,0.00019178,2]
[387530164,1758756632602,-328.0,0.00019178,2]
[387530166,1758756632611,-328.0,0.00019178,2]
[387530168,1758756632621,-328.0,0.00019178,2]
[387530170,1758756632630,-328.0,0.00019178,2]
[387530172,1758756632640,-328.0,0.00019178,2]
[387530174,1758756632650,-328.0,0.00019178,2]
[387530176,1758756632659,-328.0,0.00019178,2]
[387530178,1758756632668,-328.0,0.00019178,2]
[387530180,1758756632678,-328.0,0.00019178,2]
[387530182,1758756632688,-328.0,0.00019178,2]
[387530184,1758756632697,-482.50924181,0.00019178,2]
[387530186,1758756632707,-480.0,0.00019178,2]
[387530188,1758756632716,-480.0,0.00019178,2]
[387530190,1758756632726,-480.0,0.00019178,2]
[387530192,1758756632735,-480.0,0.00019178,2]
[387530194,1758756632745,-480.0,0.00019178,2]
[387530196,1758756632754,-480.0,0.00019178,2]
[387530198,1758756632764,-480.0,0.00019178,2]
[387530200,1758756632774,-480.0,0.00019178,2]
[387530202,1758756632783,-480.0,0.00019178,2]
[387530204,1758756632792,-480.0,0.00019178,2]
[387530206,1758756632802,-480.0,0.00019178,2]
[387530208,1758756632816,-480.0,0.00019178,2]
[387530210,1758756632826,-480.0,0.00019178,2]
[387530212,1758756632836,-480.0,0.00019178,2]
[387530214,1758756632845,-480.0,0.00019178,2]
[387530216,1758756632855,-494.88396916,0.00019178,2]
[387530218,1758756632865,-416.06108304,0.00019178,2]
[387530220,1758756632875,-202.10004526,0.00019178,2]
[387530222,1758756632886,-480.0,0.00019178,2]
[387530224,1758756632895,-480.0,0.00019178,2]
[387530226,1758756632905,-480.0,0.00019178,2]
[387530228,1758756632914,-480.0,0.00019178,2]
[387530230,1758756632924,-480.0,0.00019178,2]
[387530231,1758756632934,-480.0,0.00019178,2]
[387530232,1758756632943,-480.0,0.00019178,2]
[387530233,1758756632953,-480.0,0.00019178,2]
[387530234,1758756632962,-480.0,0.00019178,2]
[387530235,1758756632973,-480.0,0.00019178,2]
[387530236,1758756632983,-480.0,0.00019178,2]
[387530237,1758756632992,-480.0,0.00019178,2]
[387530238,1758756633002,-480.0,0.00019178,2]
[387530239,1758756633011,-328.0,0.00019178,2]
[387530240,1758756633021,-328.0,0.00019178,2]
[387530241,1758756633031,-328.0,0.00019178,2]
[387530242,1758756633041,-328.0,0.00019178,2]
[387530243,1758756633051,-328.0,0.00019178,2]
[387530244,1758756633061,-328.0,0.00019178,2]
[387530245,1758756633071,-328.0,0.00019178,2]
[387530246,1758756633081,-328.0,0.00019178,2]
[387530247,1758756633092,-328.0,0.00019178,2]
[387530248,1758756633102,-328.0,0.00019178,2]
[387530249,1758756633112,-328.0,0.00019178,2]
[387530250,1758756633122,-328.0,0.00019178,2]
[387530251,1758756633132,-328.0,0.00019178,2]
[387530252,1758756633143,-328.0,0.00019178,2]
[387530253,1758756633153,-328.0,0.00019178,2]
[387530254,1758756633163,-328.0,0.00019178,2]
[387530255,1758756633173,-328.0,0.00019178,2]
[387530257,1758756633183,-126.18004656,0.00019178,2]
[387530400,1758756643439,-201.81995344,0.00019178,2]
[387530401,1758756643449,-328.0,0.00019178,2]
[387530402,1758756643458,-328.0,0.00019178,2]
[387530403,1758756643467,-328.0,0.00019178,2]
[387530404,1758756643476,-328.0,0.00019178,2]
[387530405,1758756643485,-328.0,0.00019178,2]
[387530406,1758756643494,-328.0,0.00019178,2]
[387530407,1758756643503,-328.0,0.00019178,2]
[387530408,1758756643513,-328.0,0.00019178,2]
[387530409,1758756643522,-328.0,0.00019178,2]
[387530410,1758756643532,-328.0,0.00019178,2]
[387530411,1758756643541,-328.0,0.00019178,2]
[387530412,1758756643550,-328.0,0.00019178,2]
[387530413,1758756643561,-328.0,0.00019178,2]
[387530414,1758756643570,-328.0,0.00019178,2]
[387530415,1758756643579,-328.0,0.00019178,2]
[387530417,1758756643589,-328.0,0.00019178,2]
[387530419,1758756643598,-328.0,0.00019178,2]
[387530421,1758756643608,-328.0,0.00019178,2]
[387530423,1758756643618,-396.63768522,0.00019178,2]
[387530425,1758756643627,-239.14300425,0.00019178,2]
[387530427,1758756643637,-480.0,0.00019178,2]
[387530429,1758756643647,-787.5,0.00019178,2]
[387530431,1758756643657,-328.0,0.00019178,2]
[387530432,1758756643666,-223.67171565,0.00019178,2]
[387530433,1758756643682,-256.32828435,0.00019178,2]
[387530434,1758756643691,-480.0,0.00019178,2]
[387530435,1758756643701,-227.92037858,0.00019178,2]
[387530438,1758756804856,423806.0,0.00027397,120]
[387530439,1758757249514,729.65124274,0.00019078,2]
[387530440,1758757317178,295.338999,0.00018356,2]
[387530443,1758757603118,-300.0,0.00019177,2]
[387530444,1758757603140,-214.89871134,0.00019177,2]
[387530445,1758757603159,-480.0,0.00019178,2]
[387530446,1758757603178,-480.0,0.00019178,2]
[387530447,1758757603198,-480.0,0.00019178,2]
[387530448,1758757603217,-480.0,0.00019178,2]
[387530449,1758757603239,-480.0,0.00019178,2]
[387530450,1758757603258,-292.47815799,0.00019178,2]
[387530451,1758757603278,-450.0,0.00019178,2]
[387530452,1758757603297,-281.56,0.00019178,2]
[387530453,1758757603316,-480.0,0.00019178,2]
[387530454,1758757603336,-480.0,0.00019178,2]
[387530455,1758757603356,-480.0,0.00019178,2]
[387530456,1758757603377,-1426.53192848,0.00019178,2]
[387530459,1758757803322,638.44483738,0.00019078,2]
[387530464,1758757832417,-300.0,0.00019177,2]
[387530465,1758757832427,-1907.99451736,0.00019178,2]
[387530466,1758757832440,-250.36713896,0.00019178,2]
[387530467,1758757832450,-480.0,0.00019178,2]
[387530468,1758757832460,-287.81154795,0.00019178,2]
[387530469,1758757832470,-487.57067147,0.00019178,2]
[387530470,1758757832480,-480.0,0.00019178,2]
[387530471,1758757832490,-480.0,0.00019178,2]
[387530472,1758757832500,-480.0,0.00019178,2]
[387530473,1758757832510,-480.0,0.00019178,2]
[387530475,1758757832520,-480.0,0.00019178,2]
[387530477,1758757832530,-237.78727799,0.00019178,2]
[387530479,1758757832539,-480.0,0.00019178,2]
[387530481,1758757832549,-306.34,0.00019178,2]
[387530483,1758757832559,-480.0,0.00019178,2]
[387530485,1758757832568,-481.03107887,0.00019178,2]
[387530487,1758757832577,-480.0,0.00019178,2]
[387530489,1758757832587,-458.41064,0.00019178,2]
[387530491,1758757832596,-512.36,0.00019178,2]
[387530493,1758757832606,-480.0,0.00019178,2]
[387530495,1758757832616,-277.89995474,0.00019178,2]
[387530498,1758757832626,-340.56954772,0.00019178,2]
[387530500,1758757832635,-480.0,0.00019178,2]
[387530502,1758757832645,-480.0,0.00019178,2]
[387530504,1758757832654,-480.0,0.00019178,2]
[387530505,1758757832663,-480.0,0.00019178,2]
[387530507,1758757832673,-480.0,0.00019178,2]
[387530509,1758757832682,-480.0,0.00019178,2]
[387530511,1758757832691,-481.46767904,0.00019178,2]
[387530513,1758757832701,-480.0,0.00019178,2]
[387530515,1758757832710,-480.0,0.00019178,2]
[387530517,1758757832719,-480.0,0.00019178,2]
[387530519,1758757832729,-480.0,0.00019178,2]
[387530521,1758757832739,-480.0,0.00019178,2]
[387530523,1758757832748,-480.0,0.00019178,2]
[387530525,1758757832758,-511.98257675,0.00019178,2]
[387530527,1758757832768,-480.0,0.00019178,2]
[387530529,1758757832778,-480.0,0.00019178,2]
[387530531,1758757832787,-480.0,0.00019178,2]
[387530533,1758757832797,-480.0,0.00019178,2]
[387530535,1758757832806,-480.0,0.00019178,2]
[387530537,1758757832816,-480.0,0.00019178,2]
[387530539,1758757832825,-480.0,0.00019178,2]
[387530541,1758757832834,-480.0,0.00019178,2]
[387530543,1758757832844,-480.0,0.00019178,2]
[387530545,1758757832854,-480.0,0.00019178,2]
[387530547,1758757832864,-480.0,0.00019178,2]
[387530549,1758757832873,-480.0,0.00019178,2]
[387530551,1758757832882,-480.0,0.00019178,2]
[387530553,1758757832891,-480.0,0.00019178,2]
[387530555,1758757832900,-480.0,0.00019178,2]
[387530557,1758757832909,-480.0,0.00019178,2]
[387530559,1758757832919,-480.0,0.00019178,2]
[387530561,1758757832928,-480.0,0.00019178,2]
[387530563,1758757832938,-185.0640343,0.00019178,2]
[387530565,1758757832947,-480.0,0.00019178,2]
[387530567,1758757832957,-480.0,0.00019178,2]
[387530570,1758757832967,-480.0,0.00019178,2]
[387530572,1758757832977,-480.0,0.00019178,2]
[387530573,1758757832987,-480.0,0.00019178,2]
[387530576,1758757832996,-480.0,0.00019178,2]
[387530577,1758757833006,-500.0,0.00019178,2]
[387530580,1758757833015,-500.0,0.00019178,2]
[387530581,1758757833025,-407.41755819,0.00019178,2]
[387530583,1758757833034,-480.0,0.00019178,2]
[387530586,1758757833044,-488.75,0.00019178,2]
[387530587,1758757833053,-480.0,0.00019178,2]
[387530590,1758757833063,-500.0,0.00019178,2]
[387530591,1758757833073,-500.0,0.00019178,2]
[387530593,1758757833082,-480.0,0.00019178,2]
[387530595,1758757833091,-480.0,0.00019178,2]
[387530597,1758757833101,-480.0,0.00019178,2]
[387530599,1758757833111,-480.0,0.00019178,2]
[387530601,1758757833120,-480.0,0.00019178,2]
[387530603,1758757833129,-480.0,0.00019178,2]
[387530605,1758757833139,-480.0,0.00019178,2]
[387530606,1758757833149,-204.40286469,0.00019178,2]
[387530607,1758757833158,-951.12,0.00019178,2]
[387530608,1758757833167,-480.0,0.00019178,2]
[387530609,1758757833176,-480.0,0.00019178,2]
[387530610,1758757833186,-480.0,0.00019178,2]
[387530611,1758757833196,-480.0,0.00019178,2]
[387530612,1758757833206,-620.12,0.00019178,2]
[387530613,1758757833216,-480.0,0.00019178,2]
[387530614,1758757833227,-480.0,0.00019178,2]
[387530615,1758757833237,-480.0,0.00019178,2]
[387530616,1758757833247,-480.0,0.00019178,2]
[387530617,1758757833258,-431.30274536,0.00019178,2]
[387530618,1758757833267,-482.11753979,0.00019178,2]
[387530619,1758757833276,-480.0,0.00019178,2]
[387530620,1758757833285,-480.0,0.00019178,2]
[387530621,1758757833295,-480.0,0.00019178,2]
[387530622,1758757833305,-480.0,0.00019178,2]
[387530623,1758757833314,-288.8123079,0.00019178,2]
[387530624,1758757833330,-480.0,0.00019178,2]
[387530625,1758757833340,-480.0,0.00019178,2]
[387530626,1758757833349,-480.0,0.00019178,2]
[387530627,1758757833360,-498.48,0.00019178,2]
[387530628,1758757833370,-204.77147463,0.00019178,2]
[387530629,1758757833383,-973.57,0.00019178,2]
[387530630,1758757833395,-488.39852537,0.00019178,2]
[387530631,1758757833404,-312.75488409,0.00019178,2]
[387530632,1758757833415,-2723.21511591,0.00019178,2]
[387530633,1758757833424,-480.0,0.00019178,2]
[387530634,1758757833433,-480.0,0.00019178,2]
[387530635,1758757833443,-900.6,0.00019178,2]
[387530636,1758757833452,-779.9,0.00019178,2]
[387530637,1758757833462,-963.36,0.00019178,2]
[387530638,1758757833472,-480.0,0.00019178,2]
[387530639,1758757833481,-480.0,0.00019178,2]
[387530640,1758757833491,-480.0,0.00019178,2]
[387530641,1758757833500,-591.28652004,0.00019178,2]
[387530642,1758757833510,-480.0,0.00019178,2]
[387530643,1758757833519,-1522.87,0.00019178,2]
[387530644,1758757833529,-480.0,0.00019178,2]
[387530645,1758757833539,-480.0,0.00019178,2]
[387530646,1758757833549,-656.19,0.00019178,2]
[387530647,1758757833559,-754.69,0.00019178,2]
[387530648,1758757833568,-242.36696016,0.00019178,2]
[387530656,1758757846257,-237.63303984,0.00019178,2]
[387530657,1758757846266,-480.0,0.00019178,2]
[387530658,1758757846277,-38.53015992,0.00019178,2]
[387530659,1758757846480,-680.09984008,0.00019178,2]
[387530660,1758757846490,-553.78,0.00019178,2]
[387530661,1758757846500,-480.0,0.00019178,2]
[387530662,1758757846509,-480.0,0.00019178,2]
[387530663,1758757846518,-886.83,0.00019178,2]
[387530664,1758757846528,-480.0,0.00019178,2]
[387530665,1758757846537,-480.0,0.00019178,2]
[387530666,1758757846547,-516.64713929,0.00019178,2]
[387530667,1758757846557,-480.0,0.00019178,2]
[387530668,1758757846566,-480.0,0.00019178,2]
[387530669,1758757846575,-480.0,0.00019178,2]
[387530670,1758757846585,-480.0,0.00019178,2]
[387530671,1758757846594,-500.0,0.00019178,2]
[387530672,1758757846604,-480.0,0.00019178,2]
[387530673,1758757846613,-480.0,0.00019178,2]
[387530674,1758757846622,-480.0,0.00019178,2]
[387530675,1758757846632,-480.0,0.00019178,2]
[387530676,1758757846642,-480.0,0.00019178,2]
[387530677,1758757846652,-1138.45,0.00019178,2]
[387530678,1758757846661,-873.73,0.00019178,2]
[387530679,1758757846671,-658.76,0.00019178,2]
[387530680,1758757846680,-94.62197494,0.00019178,2]
[387530682,1758758223992,295.339,0.00018351,2]
[387530684,1758758348579,558.63923276,0.00019078,2]
[387530686,1758758873119,488.80932863,0.00019078,2]
[387530694,1758759032753,-365.79520894,0.00019176,2]
[387530695,1758759032763,-300.0,0.00019177,2]
[387530696,1758759032773,-1216.823683,0.00019178,2]
[387530697,1758759032783,-480.0,0.00019178,2]
[387530699,1758759032792,-480.0,0.00019178,2]
[387530701,1758759032802,-480.0,0.00019178,2]
[387530703,1758759032812,-480.0,0.00019178,2]
[387530705,1758759032822,-480.0,0.00019178,2]
[387530707,1758759032832,-480.0,0.00019178,2]
[387530709,1758759032842,-480.0,0.00019178,2]
[387530711,1758759032852,-484.17814416,0.00019178,2]
[387530713,1758759032864,-480.0,0.00019178,2]
[387530715,1758759032875,-480.0,0.00019178,2]
[387530717,1758759032888,-480.0,0.00019178,2]
[387530719,1758759032898,-480.0,0.00019178,2]
[387530721,1758759032909,-480.0,0.00019178,2]
[387530723,1758759032918,-480.0,0.00019178,2]
[387530725,1758759032928,-480.0,0.00019178,2]
[387530727,1758759032938,-480.0,0.00019178,2]
[387530730,1758759032947,-480.0,0.00019178,2]
[387530733,1758759032957,-151.0,0.00019178,2]
[387530736,1758759032966,-151.0,0.00019178,2]
[387530739,1758759032975,-151.0,0.00019178,2]
[387530742,1758759032984,-151.0,0.00019178,2]
[387530744,1758759032993,-151.0,0.00019178,2]
[387530747,1758759033003,-555.937848,0.00019178,2]
[387530750,1758759033012,-555.937848,0.00019178,2]
[387530753,1758759033022,-151.0,0.00019178,2]
[387530755,1758759033035,-555.937848,0.00019178,2]
[387530757,1758759033045,-151.0,0.00019178,2]
[387530759,1758759033055,-555.937856,0.00019178,2]
[387530761,1758759033063,-151.0,0.00019178,2]
[387530763,1758759033074,-151.0,0.00019178,2]
[387530765,1758759033083,-151.0,0.00019178,2]
[387530767,1758759033093,-219.691019,0.00019178,2]
[387530769,1758759033103,-219.691019,0.00019178,2]
[387530771,1758759033113,-219.691019,0.00019178,2]
[387530773,1758759033122,-219.691019,0.00019178,2]
[387530775,1758759033132,-167.78243,0.00019178,2]
[387530777,1758759033142,-219.691019,0.00019178,2]
[387530779,1758759033152,-167.78243,0.00019178,2]
[387530781,1758759033162,-219.691019,0.00019178,2]
[387530783,1758759033171,-57.65209613,0.00019178,2]
[387530785,1758759033184,-110.13033387,0.00019178,2]
[387530787,1758759033194,-219.691019,0.00019178,2]
[387530789,1758759033204,-85.95864713,0.00019178,2]
[387531031,1758759040536,-81.82378287,0.00019178,2]
[387531033,1758759040545,-167.78243,0.00019178,2]
[387531035,1758759040555,-167.78243,0.00019178,2]
[387531037,1758759040564,-167.78243,0.00019178,2]
[387531039,1758759040574,-167.78243,0.00019178,2]
[387531041,1758759040583,-167.78243,0.00019178,2]
[387531043,1758759040592,-167.78243,0.00019178,2]
[387531045,1758759040602,-167.78243,0.00019178,2]
[387531047,1758759040611,-167.78243,0.00019178,2]
[387531049,1758759040621,-167.78243,0.00019178,2]
[387531051,1758759040630,-167.78243,0.00019178,2]
[387531053,1758759040639,-167.78243,0.00019178,2]
[387531055,1758759040649,-167.78243,0.00019178,2]
[387531057,1758759040659,-167.78243,0.00019178,2]
[387531059,1758759040669,-480.0,0.00019178,2]
[387531061,1758759040678,-167.78243,0.00019178,2]
[387531063,1758759040688,-167.78243,0.00019178,2]
[387531065,1758759040697,-480.0,0.00019178,2]
[387531067,1758759040706,-167.782426,0.00019178,2]
[387531069,1758759040716,-178.4813418,0.00019178,2]
[387531071,1758759040726,-480.0,0.00019178,2]
[387531073,1758759040735,-480.0,0.00019178,2]
[387531075,1758759040745,-480.0,0.00019178,2]
[387531077,1758759040755,-480.0,0.00019178,2]
[387531080,1758759040764,-480.0,0.00019178,2]
[387531082,1758759040774,-480.0,0.00019178,2]
[387531084,1758759040783,-480.0,0.00019178,2]
[387531085,1758759040792,-480.0,0.00019178,2]
[387531088,1758759040801,-480.0,0.00019178,2]
[387531089,1758759040811,-317.29334356,0.00019178,2]
[387531092,1758759040820,-617.45801583,0.00019178,2]
[387531094,1758759040830,-480.0,0.00019178,2]
[387531095,1758759040840,-480.0,0.00019178,2]
[387531098,1758759040850,-480.0,0.00019178,2]
[387531100,1758759040859,-493.65350967,0.00019178,2]
[387531102,1758759040869,-480.0,0.00019178,2]
[387531104,1758759040879,-179.29019794,0.00019178,2]
[387531106,1758759040889,-480.0,0.00019178,2]
[387531108,1758759040899,-151.0,0.00019178,2]
[387531110,1758759040909,-151.0,0.00019178,2]
[387531112,1758759040919,-151.0,0.00019178,2]
[387531114,1758759040929,-151.0,0.00019178,2]
[387531116,1758759040938,-151.0,0.00019178,2]
[387531118,1758759040948,-166.0,0.00019178,2]
[387531120,1758759040957,-480.0,0.00019178,2]
[387531122,1758759040967,-14.07124983,0.00019178,2]
[387535512,1758759116257,150.0,0.00023657,30]
[387535513,1758759158323,427.70816256,0.00019078,2]
[387535514,1758759199214,150.0,0.0002379,30]
[387535515,1758759286135,150.0,0.00023765,30]
[387535516,1758759378474,150.0,0.00023817,30]
[387535517,1758759446460,374.24464224,0.00019077,2]
[387535518,1758759474959,150.0,0.00023822,30]
[387535519,1758759565185,150.0,0.00023791,30]
[387535520,1758759649721,150.0,0.00023787,30]
[387535521,1758759731200,327.46406196,0.00019078,2]
[387535522,1758759825246,150.0,0.00023794,30]
[387535525,1758760020623,286.53105418,0.00019078,2]
[387535569,1758760232691,-270.0,0.00019176,2]
[387535571,1758760232701,-120.55603917,0.00019176,2]
[387535577,1758760232747,-179.44396083,0.00019176,2]
[387535579,1758760232756,-300.0,0.00019176,2]
[387535581,1758760232766,-83.45603917,0.00019176,2]
[387536115,1758760238557,-216.54396083,0.00019176,2]
[387536117,1758760238567,-437.67267579,0.00019177,2]
[387536468,1758760242233,-0.01407112,0.00019177,2]
[387536469,1758760242245,-19330.55412888,0.00019177,2]
[387536470,1758760242362,-870.4725065,0.00019177,2]
[387536496,1758760243669,-427.91259848,0.00019177,2]
[387536497,1758760243682,-23991.63066884,0.00019177,2]
[387536498,1758760243692,-500.0,0.00019177,2]
[387536499,1758760243701,-295.68829545,0.00019177,2]
[387536500,1758760243711,-500.83673862,0.00019177,2]
[387536501,1758760243720,-500.0,0.00019177,2]
[387536502,1758760243730,-500.0,0.00019177,2]
[387536503,1758760243740,-500.0,0.00019177,2]
[387536504,1758760243749,-500.0,0.00019177,2]
[387536505,1758760243759,-500.0,0.00019177,2]
[387536506,1758760243769,-500.0,0.00019177,2]
[387536507,1758760243779,-423.33413841,0.00019177,2]
[387536508,1758760243789,-500.0,0.00019177,2]
[387536509,1758760243799,-500.0,0.00019177,2]
[387536510,1758760243809,-500.0,0.00019177,2]
[387536511,1758760243819,-620.0,0.00019177,2]
[387536512,1758760243828,-403.42267008,0.00019177,2]
[387536513,1758760243839,-508.9406489,0.00019177,2]
[387536514,1758760243848,-500.0,0.00019177,2]
[387536515,1758760243858,-777.8895077,0.00019178,2]
[387536516,1758760243868,-447.08183659,0.00019178,2]
[387536517,1758760243877,-480.0,0.00019178,2]
[387536518,1758760243887,-480.0,0.00019178,2]
[387536519,1758760243897,-480.0,0.00019178,2]
[387536520,1758760243907,-480.0,0.00019178,2]
[387536521,1758760243916,-480.0,0.00019178,2]
[387536522,1758760243925,-480.0,0.00019178,2]
[387536523,1758760243935,-151.0,0.00019178,2]
[387536524,1758760243944,-287.92875017,0.00019178,2]
[387536525,1758760243954,-480.0,0.00019178,2]